bitfinex/quotes_BTCUSD_20250410
["timestamp","ask_amount","ask_price","bid_price","bid_amount"]
[1744295797026,0.24466,81747.0,81726.0,0.19396]
[1744295797027,0.244665,81745.0,81739.0,0.256914]
[1744295797222,0.012231,81754.0,81745.0,0.244661]
[1744295797400,0.012231,81754.0,81746.0,0.24466]
[1744295797401,0.244644,81752.0,81746.0,0.24466]
[1744295797603,0.244644,81752.0,81743.0,0.012233]
[1744295797604,0.012232,81752.0,81743.0,0.012233]
[1744295797802,0.256888,81748.0,81743.0,0.012233]
[1744295798034,0.37742182,81754.0,81747.0,0.244657]
[1744295798232,0.244652,81749.0,81744.0,0.244663]
[1744295798461,0.256881,81750.0,81744.0,0.256896]
[1744295798769,0.25688,81750.0,81745.0,0.244661]
[1744295798970,0.256884,81749.0,81744.0,0.256896]
[1744295799288,0.256884,81749.0,81734.0,0.256927]
[1744295799289,0.256913,81740.0,81734.0,0.256927]
[1744295799462,0.256917,81739.0,81733.0,0.012234]
[1744295799693,0.256917,81739.0,81724.0,0.244723]
[1744295799694,0.012234,81735.0,81725.0,0.012236]
[1744295799908,0.256925,81736.0,81730.0,0.244706]
[1744295800099,0.256925,81736.0,81726.0,0.256954]
[1744295800303,0.244689,81737.0,81727.0,0.012235]
[1744295800502,0.012234,81735.0,81724.0,0.244723]
[1744295800716,0.012234,81735.0,81719.0,0.244739]
[1744295800717,0.012235,81729.0,81726.0,0.00012695]
[1744295800915,0.057635,81727.0,81726.0,0.00012695]
[1744295801088,0.43498482,81727.0,81726.0,0.00012695]
[1744295801288,0.01224,81694.0,81679.0,0.00928658]
[1744295801498,0.244851,81683.0,81679.0,0.00928658]
[1744295801694,0.012242,81682.0,81679.0,0.00928658]
[1744295802072,0.12055382,81682.0,81676.0,0.0003362]
[1744295802427,0.38959182,81682.0,81676.0,0.0003362]
[1744295802590,0.38959182,81682.0,81681.0,0.00442337]
[1744295803403,0.58351182,81682.0,81681.0,0.00442337]
[1744295803793,0.58355182,81682.0,81681.0,0.00442337]
[1744295804651,0.58359182,81682.0,81681.0,0.00442337]
[1744295805054,0.98359182,81682.0,81681.0,0.00442337]
[1744295806032,1.32359182,81682.0,81681.0,0.00442337]
[1744295806237,0.257109,81677.0,81676.0,0.0003362]
[1744295806468,0.63445882,81677.0,81676.0,0.0003362]
[1744295806868,0.256796,81677.0,81676.0,0.0003362]
[1744295807123,0.513905,81677.0,81676.0,0.0003362]
[1744295807306,0.256796,81677.0,81676.0,0.0003362]
[1744295807512,0.012243,81677.0,81676.0,0.0003362]
[1744295807717,0.38959282,81677.0,81676.0,0.0003362]
[1744295809712,0.37734982,81677.0,81676.0,0.0125792]
[1744295809891,8e-05,81682.0,81681.0,0.012242]
[1744295810287,8e-05,81682.0,81677.0,0.012243]
[1744295810637,0.244862,81679.0,81676.0,0.0003362]
[1744295810837,0.244856,81681.0,81677.0,0.244865]
[1744295811414,8e-05,81682.0,81681.0,0.012242]
[1744295811676,0.012242,81681.0,81676.0,0.0003362]
[1744295811878,0.012243,81677.0,81676.0,0.0003362]
[1744295812241,0.12055382,81680.0,81676.0,0.0003362]
[1744295812442,0.012243,81679.0,81676.0,0.0003362]
[1744295812764,0.12055382,81679.0,81677.0,0.257109]
[1744295812970,0.012241,81692.0,81679.0,0.244859]
[1744295813162,0.257063,81692.0,81681.0,0.012242]
[1744295813542,0.244838,81687.0,81681.0,0.012242]
[1744295813944,0.244834,81688.0,81681.0,0.012242]
[1744295814147,0.00895752,81700.0,81681.0,0.012242]
[1744295814566,0.00895752,81700.0,81696.0,0.244809]
[1744295814811,0.01224,81696.0,81691.0,0.012241]
[1744295815030,0.244832,81689.0,81686.0,0.012241]
[1744295815208,0.012241,81688.0,81682.0,0.244849]
[1744295815360,0.257056,81694.0,81686.0,0.012241]
[1744295815562,0.12055382,81693.0,81689.0,0.244828]
[1744295815772,0.244804,81698.0,81689.0,0.012241]
[1744295815978,0.12055382,81697.0,81694.0,0.244815]
[1744295816252,0.12055382,81697.0,81696.0,0.01224]
[1744295816365,0.450711,81702.0,81697.0,0.257047]
[1744295816568,0.13279282,81701.0,81695.0,0.244811]
[1744295816773,0.2448,81700.0,81697.0,0.244805]
[1744295816993,0.12055382,81699.0,81698.0,0.01224]
[1744295817194,0.19368,81702.0,81701.0,0.257034]
[1744295817569,0.256796,81703.0,81702.0,0.012239]
[1744295818412,4e-05,81752.0,81735.0,0.012234]
[1744295818623,4e-05,81752.0,81735.0,0.37992768]
[1744295818843,0.00046329,81736.0,81735.0,0.256927]
[1744295819043,0.00046329,81736.0,81729.0,0.012235]
[1744295819243,0.00046329,81736.0,81735.0,0.012234]
[1744295819442,0.00046329,81736.0,81734.0,0.256928]
[1744295819682,0.00046329,81736.0,81735.0,0.012234]
[1744295819881,0.12101711,81736.0,81732.0,0.244699]
[1744295820019,0.12101711,81736.0,81733.0,0.244697]
[1744295820020,0.12055382,81735.0,81733.0,0.244697]
[1744295820223,0.31415382,81735.0,81733.0,0.256931]
[1744295820454,0.4,81734.0,81733.0,0.244696]
[1744295820653,0.71415382,81734.0,81733.0,0.244696]
[1744295821067,0.012235,81731.0,81721.0,0.25697]
[1744295821244,0.12055382,81730.0,81727.0,0.244715]
[1744295821446,0.12055382,81730.0,81726.0,0.012236]
[1744295821648,0.012236,81723.0,81715.0,0.24475]
[1744295821901,0.12055382,81722.0,81720.0,0.244736]
[1744295822064,0.12055382,81722.0,81721.0,0.012236]
[1744295822303,0.644698,81734.0,81729.0,0.012235]
[1744295822470,0.12055382,81733.0,81731.0,0.012235]
[1744295822671,0.12055382,81733.0,81728.0,0.256947]
[1744295822870,0.244706,81731.0,81725.0,0.244721]
[1744295823139,0.12055382,81730.0,81725.0,0.244721]
[1744295823436,0.12055382,81730.0,81727.0,0.256949]
[1744295823615,0.244715,81728.0,81722.0,0.012236]
[1744295823830,0.12055382,81727.0,81722.0,0.24473]
[1744295824059,0.12055382,81727.0,81723.0,0.244727]
[1744295824484,0.12055382,81727.0,81724.0,0.244724]
[1744295824928,0.12055382,81727.0,81725.0,0.256959]
[1744295825184,0.12055382,81727.0,81723.0,0.256962]
[1744295825397,0.12055382,81727.0,81725.0,0.244722]
[1744295825623,0.12055382,81727.0,81726.0,0.012236]
[1744295825821,0.1936,81729.0,81726.0,0.012236]
[1744295826021,0.1936,81729.0,81728.0,0.012235]
[1744295826963,0.1936,81729.0,81725.0,0.012236]
[1744295827161,0.1936,81729.0,81726.0,0.012236]
[1744295827395,0.24515629,81736.0,81724.0,0.012236]
[1744295827396,0.00046329,81736.0,81735.0,0.012234]
[1744295827674,0.012235,81730.0,81721.0,0.25697]
[1744295827874,0.012236,81724.0,81718.0,0.012237]
[1744295828176,0.13278982,81723.0,81713.0,0.256994]
[1744295828356,0.13278982,81723.0,81716.0,0.244749]
[1744295828559,0.12055382,81723.0,81720.0,0.244737]
[1744295828751,0.12055382,81723.0,81716.0,0.012237]
[1744295828958,0.37751982,81723.0,81718.0,0.244742]
[1744295829160,0.12055382,81723.0,81721.0,0.244733]
[1744295829359,0.12055382,81723.0,81722.0,0.012236]
[1744295830111,0.1936,81730.0,81728.0,0.244711]
[1744295830258,0.1936,81730.0,81727.0,0.256952]
[1744295830259,0.36526582,81729.0,81724.0,0.012236]
[1744295830456,0.24472,81726.0,81719.0,0.012237]
[1744295830658,0.37751382,81725.0,81719.0,0.012237]
[1744295830934,0.37751382,81725.0,81720.0,0.244735]
[1744295831146,0.24473,81723.0,81719.0,0.012237]
[1744295831364,0.012236,81721.0,81713.0,0.012237]
[1744295831640,0.244746,81718.0,81713.0,0.012237]
[1744295831856,0.24476,81713.0,81709.0,0.257007]
[1744295832033,0.36531582,81712.0,81708.0,0.244773]
[1744295832228,0.12055382,81712.0,81709.0,0.24477]
[1744295832406,0.244738,81720.0,81712.0,0.012238]
[1744295832608,0.36530182,81717.0,81713.0,0.256994]
[1744295832813,0.012237,81714.0,81704.0,0.012239]
[1744295833129,0.244765,81711.0,81706.0,0.012239]
[1744295833332,0.012239,81705.0,81699.0,0.01224]
[1744295833536,0.36534082,81704.0,81700.0,0.644796]
[1744295833737,0.36534082,81704.0,81700.0,0.4]
[1744295833738,0.257034,81701.0,81700.0,0.4]
[1744295834112,0.14330146,81701.0,81700.0,0.4]
[1744295834312,0.15554046,81701.0,81700.0,0.4]
[1744295834537,0.14330146,81701.0,81700.0,0.657037]
[1744295834935,0.1936,81706.0,81705.0,0.257022]
[1744295835138,0.21635296,81706.0,81705.0,0.257022]
[1744295835341,0.244795,81701.0,81700.0,0.4]
[1744295835627,0.37758782,81701.0,81700.0,0.4]
[1744295836031,0.40035392,81701.0,81700.0,0.4]
[1744295836434,0.14331992,81701.0,81700.0,0.4]
[1744295836713,0.40035392,81701.0,81700.0,0.4]
[1744295836916,0.2164061,81701.0,81700.0,0.657037]
[1744295837286,0.0228061,81701.0,81700.0,0.657037]
[1744295837462,4e-05,81701.0,81700.0,0.657037]
[1744295839586,4e-05,81701.0,81700.0,0.657037]
[1744295843691,4e-05,81701.0,81700.0,0.644798]
[1744295843894,4e-05,81701.0,81700.0,0.4]
[1744295844324,0.244835,81701.0,81700.0,0.4]
[1744295844728,0.37762782,81701.0,81700.0,0.4]
[1744295844932,0.57094782,81701.0,81700.0,0.4]
[1744295845789,0.59379135,81701.0,81700.0,0.4]
[1744295846365,0.59379135,81701.0,81676.0,0.0125792]
[1744295846366,0.257109,81677.0,81676.0,0.0003362]
[1744295846569,0.37766282,81677.0,81676.0,0.00046297]
[1744295846776,0.40050635,81677.0,81676.0,0.00046297]
[1744295846974,0.80050635,81677.0,81676.0,0.00046297]
[1744295848036,0.84740635,81677.0,81676.0,0.00046297]
[1744295848238,1.2763472,81677.0,81676.0,0.00046297]
[1744295848387,1.2763872,81677.0,81676.0,0.00046297]
[1744295848626,0.257137,81668.0,81657.0,0.16407033]
[1744295848790,0.257137,81668.0,81667.0,0.00046328]
[1744295848791,0.37769082,81668.0,81667.0,0.00046328]
[1744295848998,0.40053435,81668.0,81667.0,0.00046328]
[1744295849209,0.80053435,81668.0,81667.0,0.00046328]
[1744295849833,0.99385435,81668.0,81667.0,0.00046328]
[1744295850684,1.00583898,81668.0,81667.0,0.00046328]
[1744295851109,1.76023898,81668.0,81667.0,0.00046328]
[1744295851935,1.77477983,81668.0,81667.0,0.00046328]
[1744295852136,1.77977908,81668.0,81667.0,0.00046328]
[1744295852611,1.56691898,81668.0,81667.0,0.00046328]
[1744295853031,1.76031898,81668.0,81667.0,0.00046328]
[1744295853239,0.257188,81652.0,81651.0,0.004]
[1744295853448,0.77878267,81652.0,81651.0,2e-07]
[1744295853684,0.77878267,81652.0,81627.0,0.0003364]
[1744295853685,0.257263,81628.0,81627.0,0.0003364]
[1744295853885,0.15564735,81628.0,81627.0,0.0003364]
[1744295854291,0.16480767,81628.0,81627.0,0.0003364]
[1744295854733,0.21390767,81628.0,81627.0,0.0003364]
[1744295855126,0.15255767,81628.0,81627.0,0.0003364]
[1744295855333,0.16480767,81628.0,81627.0,0.0003364]
[1744295855910,0.12971414,81628.0,81627.0,0.0003364]
[1744295856134,0.14196414,81628.0,81627.0,0.0003364]
[1744295856351,0.14200414,81628.0,81627.0,0.0003364]
[1744295857482,0.54200414,81628.0,81627.0,0.0003364]
[1744295860473,0.73548414,81628.0,81627.0,0.0003364]
[1744295860689,0.74779941,81628.0,81627.0,0.0003364]
[1744295860865,0.868232,81628.0,81627.0,0.0003364]
[1744295861062,0.74779941,81628.0,81627.0,0.0003364]
[1744295861276,1.16219941,81628.0,81627.0,0.0003364]
[1744295861456,1.184858,81628.0,81627.0,0.0003364]
[1744295862201,1.5898981,81628.0,81627.0,4e-07]
[1744295862409,0.257352,81600.0,81599.0,0.0003364]
[1744295862559,0.57138582,81600.0,81599.0,0.0003364]
[1744295862923,0.59404441,81600.0,81599.0,0.0003364]
[1744295863129,0.99404441,81600.0,81599.0,0.0003364]
[1744295863998,0.97138582,81600.0,81599.0,0.0003364]
[1744295864408,0.77790582,81600.0,81599.0,0.0003364]
[1744295864561,0.98079505,81600.0,81599.0,0.0003364]
[1744295865467,0.72344305,81600.0,81599.0,0.0003364]
[1744295865689,0.73569705,81600.0,81599.0,0.0003364]
[1744295867440,1.52729659,81600.0,81599.0,0.0003364]
[1744295867689,1.74152918,81600.0,81599.0,0.0003364]
[1744295867893,1.74652843,81600.0,81599.0,0.0003364]
[1744295868083,1.79652843,81600.0,81599.0,0.0003364]
[1744295868379,1.92119384,81600.0,81599.0,0.0003364]
[1744295869126,0.597378,81592.0,81591.0,0.004]
[1744295869331,0.72293107,81592.0,81591.0,0.00042445]
[1744295869567,1.18733107,81592.0,81591.0,0.00042445]
[1744295869744,1.22449061,81592.0,81591.0,4.5e-07]
[1744295869948,1.62449061,81592.0,81591.0,4.5e-07]
[1744295870351,1.57449061,81592.0,81591.0,4.5e-07]
[1744295870569,1.81809061,81592.0,81591.0,4.5e-07]
[1744295870936,1.81309136,81592.0,81591.0,4.5e-07]
[1744295871139,1.79819051,81592.0,81591.0,4.5e-07]
[1744295871402,1.74819051,81592.0,81591.0,4.5e-07]
[1744295872027,1.75019051,81592.0,81591.0,4.5e-07]
[1744295872248,1.74819051,81592.0,81591.0,4.5e-07]
[1744295872386,1.40819051,81592.0,81591.0,4.5e-07]
[1744295873255,1.40819051,81592.0,81535.0,0.012264]
[1744295873256,0.01226,81562.0,81535.0,0.012264]
[1744295873380,0.01226,81562.0,81540.0,0.012263]
[1744295873381,2.24746582,81562.0,81540.0,0.012263]
[1744295873595,2.24746582,81562.0,81561.0,0.00412706]
[1744295873848,2.67008451,81562.0,81561.0,0.00412706]
[1744295874129,2.65782451,81562.0,81561.0,0.00412706]
[1744295874319,2.41261251,81562.0,81561.0,0.00412706]
[1744295874525,2.2317979,81562.0,81561.0,0.00412706]
[1744295875654,2.21937251,81562.0,81561.0,0.00412706]
[1744295875829,1.28441869,81562.0,81561.0,0.01638706]
[1744295876031,1.2618,81562.0,81561.0,0.01638706]
[1744295876444,0.19324,81571.0,81569.0,0.012259]
[1744295876646,0.12055382,81570.0,81569.0,0.012259]
[1744295876945,0.12987213,81570.0,81569.0,0.257449]
[1744295877243,0.12987213,81570.0,81567.0,0.245195]
[1744295877448,0.245208,81564.0,81561.0,0.00412706]
[1744295877646,0.14326862,81563.0,81561.0,0.00412706]
[1744295877787,0.54326862,81563.0,81562.0,0.245212]
[1744295877990,0.14326862,81563.0,81562.0,0.257472]
[1744295878309,0.12055382,81563.0,81562.0,0.257472]
[1744295878511,0.52055382,81563.0,81562.0,0.245212]
[1744295878909,0.52055382,81563.0,81561.0,0.01638706]
[1744295878910,0.80074623,81563.0,81561.0,0.00412706]
[1744295879133,0.01226,81562.0,81561.0,0.00412706]
[1744295879336,0.14327723,81562.0,81561.0,0.00412706]
[1744295879541,0.15553723,81562.0,81561.0,0.00412706]
[1744295880305,0.27596982,81562.0,81561.0,0.00412706]
[1744295880457,0.15553723,81562.0,81561.0,0.00412706]
[1744295880669,0.14327723,81562.0,81561.0,0.00412706]
[1744295880869,0.15553723,81562.0,81561.0,0.00412706]
[1744295881021,0.14327723,81562.0,81561.0,0.00412706]
[1744295881222,0.15553723,81562.0,81561.0,0.00412706]
[1744295881433,0.14327723,81562.0,81561.0,0.00412706]
[1744295881639,0.15553723,81562.0,81561.0,0.00412706]
[1744295881840,0.14327723,81562.0,81561.0,0.00412706]
[1744295882067,0.12055382,81562.0,81561.0,0.01638706]
[1744295882398,0.52055382,81562.0,81561.0,0.01638706]
[1744295882606,0.52055382,81562.0,81561.0,0.00412706]
[1744295882870,0.76576582,81562.0,81561.0,0.00412706]
[1744295883077,0.12055382,81562.0,81561.0,0.26160206]
[1744295883329,0.12055382,81562.0,81561.0,0.24934206]
[1744295883508,0.12055382,81562.0,81561.0,0.26160206]
[1744295883716,0.12055382,81562.0,81561.0,0.00412706]
[1744295883893,0.12055382,81562.0,81561.0,0.26160206]
[1744295884292,0.14333797,81562.0,81561.0,0.26160206]
[1744295885634,0.40080997,81562.0,81561.0,0.00412706]
[1744295885842,0.14333797,81562.0,81561.0,0.26160206]
[1744295886693,0.02278415,81562.0,81561.0,0.26160206]
[1744295886893,0.02278415,81562.0,81561.0,0.00412706]
[1744295887102,0.40080997,81562.0,81561.0,0.00412706]
[1744295887424,1.33220352,81562.0,81561.0,0.00412706]
[1744295887743,1.73220352,81562.0,81561.0,0.00412706]
[1744295888189,1.73720277,81562.0,81561.0,0.00412706]
[1744295888340,1.73720277,81562.0,81531.0,0.249304]
[1744295888341,0.01726225,81546.0,81531.0,0.004]
[1744295888544,0.99241395,81546.0,81545.0,0.00046361]
[1744295888989,1.41019885,81546.0,81545.0,0.00046361]
[1744295889305,1.34872182,81546.0,81545.0,0.00046361]
[1744295890049,1.32593767,81546.0,81545.0,0.00046361]
[1744295890924,1.13261767,81546.0,81545.0,0.00046361]
[1744295891129,1.32593767,81546.0,81545.0,0.00046361]
[1744295891329,0.12055382,81546.0,81545.0,0.25798961]
[1744295891619,0.4144,81574.0,81572.0,0.257441]
[1744295891835,0.12055382,81573.0,81572.0,0.257441]
[1744295892048,0.12055382,81573.0,81571.0,0.245184]
[1744295892258,0.12055382,81573.0,81572.0,0.012259]
[1744295892509,0.4144,81574.0,81573.0,0.257437]
[1744295892750,0.012259,81571.0,81564.0,0.245204]
[1744295892967,0.12055382,81570.0,81568.0,0.245191]
[1744295893184,0.245201,81566.0,81558.0,0.012261]
[1744295893401,0.12055382,81565.0,81563.0,0.245207]
[1744295893612,0.41448803,81574.0,81573.0,0.257437]
[1744295893828,0.53504185,81574.0,81573.0,0.257437]
[1744295894251,0.245179,81573.0,81565.0,0.257463]
[1744295894460,0.245186,81571.0,81567.0,0.245196]
[1744295894674,0.257439,81573.0,81568.0,0.245193]
[1744295894675,0.12055382,81570.0,81568.0,0.245193]
[1744295894894,0.12055382,81570.0,81569.0,0.012259]
[1744295895555,0.41448803,81574.0,81573.0,0.257437]
[1744295896185,8.803e-05,81574.0,81573.0,0.257437]
[1744295897524,8.803e-05,81574.0,81573.0,0.29505674]
[1744295897740,8.803e-05,81574.0,81573.0,0.257437]
[1744295898713,8.803e-05,81574.0,81573.0,0.29506145]
[1744295901377,3e-08,81574.0,81573.0,0.75561527]
[1744295901597,4e-05,81600.0,81599.0,0.257356]
[1744295901835,0.00012828,81600.0,81599.0,0.257356]
[1744295904246,0.00012828,81600.0,81599.0,0.257356]
[1744295904842,7.8e-07,81603.0,81602.0,0.257346]
[1744295905917,0.1205546,81603.0,81600.0,0.245098]
[1744295906189,0.12055382,81602.0,81601.0,0.245095]
[1744295906385,7.8e-07,81603.0,81602.0,0.012254]
[1744295906708,7.8e-07,81603.0,81602.0,0.257346]
[1744295907330,7.8e-07,81603.0,81593.0,0.012255]
[1744295907532,0.12055382,81602.0,81599.0,0.012255]
[1744295907733,0.12055382,81602.0,81593.0,0.25746028]
[1744295908023,0.245095,81601.0,81596.0,0.24511]
[1744295908222,0.12055382,81600.0,81597.0,0.245104]
[1744295908450,0.245116,81594.0,81593.0,8.828e-05]
[1744295908695,0.12055382,81594.0,81593.0,8.828e-05]
[1744295908897,0.12055382,81594.0,81593.0,0.24520728]
[1744295909074,0.012255,81599.0,81593.0,0.24520728]
[1744295909075,0.245101,81599.0,81593.0,0.01234328]
[1744295909285,0.41225478,81603.0,81597.0,0.245106]
[1744295909286,0.12055382,81598.0,81597.0,0.245106]
[1744295909505,0.12055382,81598.0,81596.0,0.245109]
[1744295909658,0.12055382,81598.0,81597.0,0.245107]
[1744295910673,0.12055382,81598.0,81593.0,8.828e-05]
[1744295910851,0.245116,81594.0,81593.0,8.828e-05]
[1744295911222,0.12055382,81594.0,81593.0,8.828e-05]
[1744295913977,0.12055382,81594.0,81593.0,0.24520728]
[1744295914201,0.12055382,81594.0,81593.0,8.828e-05]
[1744295914339,7.8e-07,81603.0,81602.0,0.245092]
[1744295914535,0.1205546,81603.0,81602.0,0.257346]
[1744295914896,7.8e-07,81603.0,81602.0,0.257346]
[1744295915101,0.1205546,81603.0,81602.0,0.257346]
[1744295915244,7.8e-07,81603.0,81602.0,0.257346]
[1744295919082,0.2451,81600.0,81595.0,0.012255]
[1744295919286,0.12055382,81599.0,81598.0,0.245104]
[1744295919510,7.8e-07,81603.0,81602.0,0.245092]
[1744295919684,7.8e-07,81603.0,81602.0,0.257346]
[1744295921254,0.1205546,81603.0,81602.0,0.257346]
[1744295921861,7.8e-07,81603.0,81602.0,0.257346]
[1744295922211,0.1205546,81603.0,81602.0,0.245092]
[1744295922411,0.1205546,81603.0,81602.0,0.257346]
[1744295922713,7.8e-07,81603.0,81602.0,0.257346]
[1744295923889,0.1205546,81603.0,81601.0,0.257348]
[1744295924060,0.1205546,81603.0,81602.0,0.257346]
[1744295924409,0.1205546,81603.0,81602.0,0.245092]
[1744295924630,0.1205546,81603.0,81602.0,0.257346]
[1744295925622,7.8e-07,81603.0,81602.0,0.257346]
[1744295928515,7.8e-07,81603.0,81602.0,0.42629982]
[1744295928875,7.8e-07,81603.0,81602.0,0.305746]
[1744295929068,7.8e-07,81603.0,81602.0,0.257346]
[1744295933175,7.8e-07,81603.0,81602.0,0.247346]
[1744295936336,7.8e-07,81603.0,81601.0,0.257348]
[1744295936538,0.1205546,81603.0,81602.0,0.257346]
[1744295937734,0.1205546,81603.0,81599.0,0.257353]
[1744295937929,0.12055382,81602.0,81598.0,0.012255]
[1744295938178,0.12055382,81602.0,81601.0,0.257349]
[1744295939066,7.8e-07,81603.0,81602.0,0.257346]
[1744295943004,7.8e-07,81603.0,81602.0,0.012254]
[1744295943202,7.8e-07,81603.0,81602.0,0.257346]
[1744295944102,0.012254,81601.0,81592.0,0.012256]
[1744295944303,0.12055382,81600.0,81599.0,0.245101]
[1744295944586,7.8e-07,81603.0,81602.0,0.257346]
[1744295944791,7.8e-07,81603.0,81602.0,0.245092]
[1744295944991,0.245092,81602.0,81599.0,0.245099]
[1744295945193,7.8e-07,81603.0,81602.0,0.012254]
[1744295945336,0.1205546,81603.0,81602.0,0.257346]
[1744295946497,7.8e-07,81603.0,81602.0,0.257346]
[1744295947879,7.8e-07,81603.0,81602.0,0.37789982]
[1744295948496,7.8e-07,81603.0,81602.0,0.257346]
[1744295949465,0.24509278,81603.0,81588.0,0.012256]
[1744295949679,0.12055382,81602.0,81600.0,0.245097]
[1744295949872,7.8e-07,81603.0,81602.0,0.257346]
[1744295950490,7.8e-07,81603.0,81602.0,6.620804]
[1744295951053,7.8e-07,81603.0,81602.0,6.668504]
[1744295951946,7.8e-07,81603.0,81602.0,6.620804]
[1744295954926,7.8e-07,81603.0,81602.0,6.363458]
[1744295955124,7.8e-07,81603.0,81602.0,6.620804]
[1744295956549,0.01225478,81603.0,81602.0,6.363458]
[1744295956733,0.3778976,81603.0,81602.0,6.363458]
[1744295958102,0.1205546,81603.0,81602.0,6.363458]
[1744295958233,7.8e-07,81603.0,81602.0,6.620804]
[1744295959070,0.25734378,81603.0,81602.0,6.363458]
[1744295959273,7.8e-07,81603.0,81602.0,6.363458]
[1744295959589,7.8e-07,81603.0,81602.0,6.620804]
[1744295959970,0.1205546,81603.0,81602.0,6.363458]
[1744295960326,0.3778976,81603.0,81602.0,6.363458]
[1744295960659,0.1205546,81603.0,81602.0,6.620804]
[1744295960853,0.1205546,81603.0,81602.0,6.363458]
[1744295961082,0.1205546,81603.0,81602.0,6.620804]
[1744295961619,0.1205546,81603.0,81602.0,6.363458]
[1744295961928,0.245116,81594.0,81593.0,8.828e-05]
[1744295962078,0.97146567,81594.0,81593.0,8.828e-05]
[1744295962264,1.38586567,81594.0,81593.0,8.828e-05]
[1744295962689,1.78586567,81594.0,81593.0,8.828e-05]
[1744295962875,1.78046786,81594.0,81593.0,8.828e-05]
[1744295963287,1.58846786,81594.0,81593.0,8.828e-05]
[1744295963483,1.78050786,81594.0,81593.0,8.828e-05]
[1744295963919,1.58846786,81594.0,81593.0,8.828e-05]
[1744295964112,1.17406786,81594.0,81593.0,8.828e-05]
[1744295964710,1.3090413,81594.0,81593.0,8.828e-05]
[1744295964911,1.17406786,81594.0,81593.0,8.828e-05]
[1744295965316,0.71792482,81594.0,81593.0,8.828e-05]
[1744295965477,0.72691619,81594.0,81593.0,8.828e-05]
[1744295965672,1.12691619,81594.0,81593.0,8.828e-05]
[1744295968671,1.26188963,81594.0,81593.0,8.828e-05]
[1744295969022,1.65495704,81594.0,81593.0,8.828e-05]
[1744295969922,1.65495704,81594.0,81569.0,0.0003368]
[1744295969923,0.597447,81570.0,81569.0,0.0003368]
[1744295970135,0.91004082,81570.0,81569.0,0.0003368]
[1744295970556,0.71800082,81570.0,81569.0,0.0003368]
[1744295970776,0.46055382,81570.0,81569.0,0.0003368]
[1744295971320,0.86055382,81570.0,81569.0,0.0003368]
[1744295971489,0.71259382,81570.0,81569.0,0.0003368]
[1744295972691,0.7216444,81570.0,81569.0,0.0003368]
[1744295974541,0.5296044,81570.0,81569.0,0.0003368]
[1744295974744,0.7216844,81570.0,81569.0,0.0003368]
[1744295975601,1.22954083,81570.0,81569.0,0.0003368]
[1744295975804,1.50152868,81570.0,81569.0,0.0003368]
[1744295976005,2.68783225,81570.0,81569.0,0.0003368]
[1744295977387,0.5296044,81570.0,81569.0,0.0003368]
[1744295977950,0.7870514,81570.0,81569.0,0.0003368]
[1744295979189,0.7747924,81570.0,81569.0,0.0003368]
[1744295979338,0.7870514,81570.0,81569.0,0.0003368]
[1744295979900,0.92202484,81570.0,81569.0,0.0003368]
[1744295980067,0.89469225,81570.0,81569.0,0.0003368]
[1744295980236,1.23469225,81570.0,81569.0,0.0003368]
[1744295982178,2.49701225,81570.0,81569.0,0.0003368]
[1744295982382,0.597463,81565.0,81564.0,0.0003368]
[1744295982587,0.92467767,81565.0,81564.0,0.00046381]
[1744295982751,1.04511026,81565.0,81564.0,0.00046381]
[1744295982945,1.44511026,81565.0,81564.0,0.00046381]
[1744295983159,0.70701585,81561.0,81560.0,0.0003368]
[1744295983406,0.83256892,81561.0,81560.0,0.00042483]
[1744295983608,0.597523,81546.0,81545.0,0.0003366]
[1744295983809,1.32473767,81546.0,81545.0,0.0003366]
[1744295985228,1.32473767,81546.0,81536.0,0.0003368]
[1744295985229,0.597551,81537.0,81536.0,0.0003368]
[1744295985371,1.98058482,81537.0,81536.0,0.00046398]
[1744295985584,2.10101741,81537.0,81536.0,0.00046398]
[1744295985773,2.50101741,81537.0,81536.0,0.00046398]
[1744295986605,2.51555826,81537.0,81536.0,0.00046398]
[1744295986922,2.51555826,81537.0,81523.0,0.000337]
[1744295986923,0.597567,81532.0,81523.0,0.000337]
[1744295987122,0.73266167,81532.0,81523.0,0.000337]
[1744295987500,1.13266167,81532.0,81523.0,0.000337]
[1744295989909,1.13266167,81532.0,81530.0,0.245306]
[1744295989910,0.71271382,81532.0,81530.0,0.245306]
[1744295990116,0.71271382,81532.0,81531.0,0.016265]
[1744295990321,0.31271382,81532.0,81531.0,0.016265]
[1744295990473,0.19216,81532.0,81531.0,0.016265]
[1744295990670,1.26260687,81537.0,81531.0,0.016265]
[1744295990671,0.00012687,81537.0,81536.0,0.257554]
[1744295991211,0.12068069,81537.0,81536.0,0.257554]
[1744295991770,0.00012687,81537.0,81536.0,0.257554]
[1744295996486,0.0001685,81579.0,81578.0,0.245164]
[1744295996658,0.12072232,81579.0,81578.0,0.257422]
[1744295996871,0.12084945,81579.0,81568.0,0.25745]
[1744295997119,0.12084945,81579.0,81531.0,0.059]
[1744295997120,0.257442,81572.0,81562.0,0.01226]
[1744295997268,0.257442,81572.0,81566.0,0.245199]
[1744295997269,0.12055382,81571.0,81566.0,0.245199]
[1744295997431,0.12055382,81571.0,81564.0,0.245205]
[1744295997635,0.645188,81570.0,81563.0,0.01226]
[1744295997836,0.12055382,81569.0,81565.0,0.245203]
[1744295998279,0.12055382,81569.0,81566.0,0.245199]
[1744295998485,0.4,81568.0,81566.0,0.257459]
[1744295998640,0.12055382,81567.0,81566.0,0.257459]
[1744295999748,0.257467,81564.0,81555.0,0.245232]
[1744295999986,0.31223382,81563.0,81556.0,0.012261]
[1744296000139,0.31223382,81563.0,81562.0,0.01226]
[1744296001447,0.34949788,81579.0,81578.0,0.257422]
[1744296001827,0.12084945,81579.0,81578.0,0.257422]
[1744296001979,0.00029563,81579.0,81578.0,0.257422]
[1744296002807,0.12084945,81579.0,81578.0,0.257422]
[1744296005506,0.00029563,81579.0,81578.0,0.257422]
[1744296007915,6.3e-07,81579.0,81578.0,0.76757582]
[1744296008123,7.8e-07,81603.0,81602.0,0.257346]
[1744296008316,7.8e-07,81603.0,81602.0,0.306946]
[1744296012227,2.8e-07,81610.0,81609.0,0.257324]
[1744296012487,0.00012734,81610.0,81609.0,0.597324]
[1744296013958,0.00012734,81610.0,81605.0,0.245082]
[1744296014160,0.00012734,81610.0,81596.0,0.245107]
[1744296014161,0.012255,81596.0,81579.0,0.24516]
[1744296014357,0.012256,81592.0,81580.0,0.012257]
[1744296014582,0.12055382,81591.0,81582.0,0.012257]
[1744296014784,0.12055382,81591.0,81590.0,0.012256]